Cogmind - Beta 13 @@@ ROGUE MODE // 2024.05.27 @ 22:19:51 Player: BatSpy Result: Destroyed by NA-QZA(R) with Subdweller Beam Cannon Performance ------------- Evolutions (0) 0 Regions Visited (2) 400 Robots Destroyed (22) 110 Value Destroyed (621) 621 Prototype IDs (0) 0 Alien Tech Used (0) 0 Bonus (0) 0 TOTAL SCORE: 1131 Bonus ------- None Cogmind --------- Core Integrity 0/250 Matter 120/300 Energy 100/100 System Corruption 0% Temperature Cool (9) Movement Core (250) Ox4 Location -10/Subcaves Parts ------- > --- POWER (1) -------- Subdweller Power Source > --- PROPULSION (2) --- (None) > --- UTILITY (2) ------ Small Storage Unit > --- WEAPON (2) ------- EM Pulse Gun Light Assault Rifle > --- INVENTORY (8) ---- Hacking Suite Battle Rifle Subdweller Shrapnel Launcher Peak State ------------ > --- POWER ------------ Subdweller Power Source > --- PROPULSION ------- Spiked Treads Compact Wheel > --- UTILITY ---------- Small Storage Unit Large Matter Pod > --- WEAPON ----------- Riot Gun Assault Rifle > --- INVENTORY -------- Hacking Suite EM Pulse Gun Light Assault Rifle Battle Rifle Subdweller Shrapnel Launcher [Rating: 11] Favorites ----------- Power Ion Engine Engine Ion Engine Propulsion Compact Wheel Treads Spiked Treads Wheel Compact Wheel Utility Small Storage Unit Storage Small Storage Unit Weapon Grenade Launcher Energy Gun EM Pulse Gun Ballistic Gun Assault Rifle Launcher Grenade Launcher Build | -11 -10 -10 ------- Run | Yrd Mat Sub Slots Evolved . | . . . Power . | . . . Propulsion . | . . . Utility . | . . . Weapon . | . . . Parts Attached 19 | 6 1 12 Power 2 | 1 . 1 Engine 2 | 1 . 1 Core . | . . . Reactor . | . . . Propulsion 5 | 2 . 3 Treads 2 | . . 2 Leg . | . . . Wheel 3 | 2 . 1 Hover . | . . . Flight . | . . . Utility 2 | 1 1 . Device . | . . . Storage 2 | 1 1 . Processor . | . . . Hackware . | . . . Protection . | . . . Artifact . | . . . Weapon 10 | 2 . 8 Energy Gun 3 | 1 . 2 Energy Cannon . | . . . Ballistic Gun 3 | 1 . 2 Ballistic Cannon . | . . . Launcher 4 | . . 4 Special Weapon . | . . . Impact Weapon . | . . . Slashing Weapon . | . . . Piercing Weapon . | . . . Special Melee Weapon . | . . . Unidentified Prototypes . | . . . Parts Lost 10 | . . 10 Power 1 | . . 1 Propulsion 3 | . . 3 Utility 1 | . . 1 Weapon 5 | . . 5 Highest Loss Streak 3 | . . 3 To Critical Strikes . | . . . Average Slot Usage (%) 93 | . 94 93 Engine 10 | . 14 10 Treads 6 | . . 6 Wheel 20 | . 28 19 Storage 26 | . 22 27 Energy Gun 2 | . 14 1 Ballistic Gun 3 | . 14 2 Launcher 21 | . . 23 Naked Turns . | . . . Heaviest Build 24 | 14 17 24 Greatest Support 36 | 32 32 36 Greatest Overweight (x) 4 | . . 4 Average Overweight (x) . | . . . Largest Inventory Capacity 8 | 8 8 8 Average Capacity 7 | 7 8 8 Most Carried 8 | 5 4 8 Average Carried 6 | 1 2 6 Final Capacity 8 | 8 8 8 Final Carried 4 | 1 4 3 Class Distribution -------------------- 100% | Mutant Dominant Class ---------------- Mutant | -10/Materials Mutant | -10/Subcaves Resources | -11 -10 -10 ----------- Run | Yrd Mat Sub Matter Collected 625 | 183 20 422 Remotely . | . . . Salvage Created 376 | . 45 331 Parts 32 | . 5 27 Haulers Intercepted . | . . . Recyclers Shooed . | . . . Parts Field Recycled . | . . . Retrieved Matter . | . . . Parts Self-Destructed 16 | . . 16 Prevented . | . . . Kills | -11 -10 -10 ------- Run | Yrd Mat Sub Combat Hostiles Destroyed 20 | . . 20 Guns 1 | . . 1 AOE 19 | . . 19 Classes Destroyed 6 | . 2 4 Operator 1 | . 1 . Watcher 1 | . 1 . Swarmer 7 | . . 7 Grunt 1 | . . 1 Sentry 1 | . . 1 Subdweller 11 | . . 11 Best Kill Streak 6 | . 1 6 Combat Bots Only 6 | . . 6 Max Kills in Single Turn 4 | . 1 4 Gunslinging . | . . . Exploded 4 | . . 4 Melee . | . . . Uniques/NPCs Destroyed . | . . . Combat | -11 -10 -10 -------- Run | Yrd Mat Sub Hostile Shots Fired 172 | . 10 162 Missed 79 | . 2 77 Damage Taken 1070 | . 88 982 Core 251 | . 45 206 Absorbed by Shields . | . . . Core Remaining (%) 100 | 100 . . Volleys Fired 39 | . 4 35 Largest 2 | . 2 2 Hottest 70 | . 60 70 Shots Fired 65 | . 8 57 Gun 29 | . 8 21 Cannon . | . . . Launcher 36 | . . 36 Special . | . . . Kinetic 19 | . 4 15 Thermal . | . . . Explosive 28 | . . 28 Electromagnetic 18 | . 4 14 Robot Hit Streak 16 | . 2 16 Robot Miss Streak 3 | . 3 3 Penetration Max . | . . . Secondary Targets 1 | . 1 . Max Gunslinging Chain 1 | . 1 . Shots Hit Robots 40 | . 3 37 Core Hits 35 | . 2 33 Critical Kills . | . . . Critical Parts Destroyed . | . . . Critical Strikes . | . . . Melee Attacks . | . . . Impact . | . . . Slashing . | . . . Piercing . | . . . Sneak Attacks . | . . . Combat Hostiles . | . . . Follow-up Attacks . | . . . Damage Inflicted 2139 | . 42 2097 Guns 195 | . 42 153 Cannons . | . . . Explosions 1944 | . . 1944 Melee . | . . . Ramming . | . . . Kinetic 449 | . 27 422 Thermal . | . . . Explosive 1543 | . . 1543 Electromagnetic 147 | . 15 132 Impact . | . . . Slashing . | . . . Piercing . | . . . Highest Corruption . | . . . Average Corruption . | . . . Corruption Purged . | . . . Corruption Blocked . | . . . Overload Shots . | . . . Overflow Damage 58 | . . 58 Projectiles . | . . . Explosions 58 | . . 58 Melee . | . . . Knockbacks . | . . . Impact . | . . . Kinetic . | . . . Secondary . | . . . Self-Inflicted Damage 37 | . . 37 Shots 1 | . . 1 Rammed . | . . . Targets Rammed . | . . . Kicked . | . . . Crushed . | . . . Highest Temperature 6 | . 6 . Average Temperature 6 | . 6 . Received Heat Transfer 444 | . 48 396 Siege Activations . | . . . Robots Corrupted . | . . . Combat Hostiles . | . . . Parts Fried 2 | . . 2 Impact Corruptions . | . . . Robots Melted . | . . . Combat Hostiles . | . . . Parts Melted . | . . . Heat Transferred . | . . . Parts Sabotaged . | . . . Parts Stolen . | . . . Parts Stripped . | . . . Power Chain Reactions . | . . . Alert | -11 -10 -10 ------- Run | Yrd Mat Sub Peak Influence 87 | . 87 . Initial . | . . . Average 22 | . 27 . Maximum Alert Level . | . . . Low Security (%) 100 | 100 100 . Level 1 . | . . . Level 2 . | . . . Level 3 . | . . . Level 4 . | . . . Level 5 . | . . . High Security . | . . . Max Security . | . . . Squads Dispatched 1 | . 1 . Investigation . | . . . Extermination . | . . . Reinforcement 1 | . 1 . Assault . | . . . Garrison . | . . . Intercept . | . . . Searches Triggered . | . . . Construction Impeded . | . . . Haulers Reinforced . | . . . Active Scanning Responses . | . . . Cargo Convoy Interrupts . | . . . Stealth | -11 -10 -10 --------- Run | Yrd Mat Sub Distress Signals . | . . . Communications Jammed . | . . . Distress Signals . | . . . Times Spotted 102 | . 5 97 Peak Tracking Total 4 | . 3 4 Tactical Retreats 10 | . 1 9 Traps | -11 -10 -10 ------- Run | Yrd Mat Sub Traps Triggered . | . . . Indirectly . | . . . Trap Hack Attempts . | . . . Triggered . | . . . Disarmed . | . . . Reprogrammed . | . . . Reused . | . . . Traps Extracted . | . . . Installed . | . . . Triggered . | . . . Machines | -11 -10 -10 ---------- Run | Yrd Mat Sub Machines Disabled . | . . . Max in Single Turn . | . . . Machines Repaired . | . . . Machines Dismantled . | . . . Machines Sabotaged . | . . . Overloaded Fab Kills . | . . . Hacking | -11 -10 -10 --------- Run | Yrd Mat Sub Machines Accessed . | . . . Terminals . | . . . Fabricators . | . . . Repair Stations . | . . . Recycling Units . | . . . Scanalyzers . | . . . Garrison Access . | . . . Total Hacks . | . . . Successful . | . . . Failed . | . . . Catastrophic . | . . . Database Lockouts . | . . . Manual . | . . . Terminals . | . . . Fabricators . | . . . Repair Stations . | . . . Recycling Units . | . . . Scanalyzers . | . . . Garrison Access . | . . . Terminal Hacks . | . . . Fabricator Hacks . | . . . Repair Station Hacks . | . . . Recycling Unit Hacks . | . . . Scanalyzer . | . . . Garrison Access Hacks . | . . . Unauthorized Hacks . | . . . Terminals . | . . . Fabricators . | . . . Repair Stations . | . . . Recycling Units . | . . . Scanalyzers . | . . . Garrison Access . | . . . Data Cores Recovered . | . . . Used . | . . . Hacking Detections . | . . . Full Trace Events . | . . . Feedback Events . | . . . Feedback Blocked . | . . . Robot Schematics Acquired . | . . . Robots Built . | . . . Authchips . | . . . Time . | . . . Total Robot Build Rating . | . . . Part Schematics Acquired . | . . . Parts Built . | . . . Authchips . | . . . Time . | . . . Total Part Build Rating . | . . . Parts Repaired . | . . . Time . | . . . Parts Recycled . | . . . Recycled Matter . | . . . Retrieved Matter . | . . . Retrieved Components . | . . . Parts Scanalyzed . | . . . Part Schematics Acquired . | . . . Parts Damaged . | . . . Bothacking | -11 -10 -10 ------------ Run | Yrd Mat Sub Used RIF Installer . | . . . Robots Hacked . | . . . Non-combat . | . . . Combat . | . . . Robot Hacks Applied . | . . . Relay Couplers Released . | . . . Fabnet Peak Effective % . | . . . Robots Rewired . | . . . Allies Hacked . | . . . Hacks Repelled . | . . . Allies | -11 -10 -10 -------- Run | Yrd Mat Sub Total Allies . | . . . Largest Group . | . . . Highest-Rated Group . | . . . Highest-Rated Ally . | . . . Total Orders . | . . . Ally Attacks . | . . . Total Damage . | . . . Kills . | . . . Allies Corrupted . | . . . Allies Melted . | . . . Intel | -11 -10 -10 ------- Run | Yrd Mat Sub Robot Analysis Total . | . . . Derelict Logs Recovered . | . . . Drone Launches . | . . . Drone Recoveries . | . . . Exploration | -11 -10 -10 ------------- Run | Yrd Mat Sub Turns Passed 2212 | 41 180 1991 Spaces Moved 1934 | 33 160 1741 Core 25 | 9 . 16 Treads . | . . . Legs . | . . . Wheels 1909 | 24 160 1725 Hover . | . . . Flight . | . . . Fastest Speed 50 | 50 100 100 Average Speed 104 | 86 100 105 Slowest Speed 250 | 100 100 250 Overloaded Moves . | . . . Propulsion Burnouts . | . . . Robots Hopped . | . . . Cave-ins Triggered . | . . . Exploration Rate (%) 38 | 4 25 85 Regions Visited 2 Branch Regions 1 Pre-discovered Areas . | . . . Known Exits Taken . | . . . Unknown Exits Taken 2 | 1 1 . Scrap Searched 1 | . . 1 Spaces Dug 16 | . . 16 Terrain Destroyed 197 | . . 197 Melee . | . . . Projectile . | . . . AOE 197 | . . 197 Terrain Rammed . | . . . Walls Destroyed . | . . . Machines Disabled . | . . . Actions | -11 -10 -10 --------- Run | Yrd Mat Sub Total 2053 | 45 172 1836 Wait 42 | . 4 38 Move 1932 | 32 159 1741 Hop . | . . . Pick Up 19 | 7 4 8 Fast Attach . | . . . Attach 14 | 6 1 7 Detach . | . . . Swap 5 | . . 5 Drop 2 | . . 2 Fire 39 | . 4 35 Melee . | . . . Ram . | . . . Kick . | . . . Crush . | . . . Escape Stasis . | . . . Rewire . | . . . Trap . | . . . Miscellaneous . | . . . Route ------- -11/Scrapyard -10/Materials (discovered 2 exits: [*Min] / [*Sub]) -10/Subcaves (discovered 1 exit: [*Rec]) History --------- Turn | Location | Event 8 | -11/Scrapyard | Discovered new exit (range 15) 42 | -11/Scrapyard | Entered Materials 94 | -10/Materials | Discovered new exit (range 16) 215 | -10/Materials | Discovered new exit (range 7) 222 | -10/Materials | Entered Subcaves 315 | -10/Subcaves | Build established: Mutant 358 | -10/Subcaves | Shifting Twisted Machinery released Sub. Shrapnel Launcher 385 | -10/Subcaves | Shifting Twisted Machinery released Spk. Treads 796 | -10/Subcaves | Shifting Twisted Machinery released Piercing Trap 805 | -10/Subcaves | Shifting Twisted Machinery released Riot Gun 1221 | -10/Subcaves | Shifting Twisted Machinery released Sub. Laser 1227 | -10/Subcaves | Shifting Twisted Machinery released Battle Rifle 1665 | -10/Subcaves | Core integrity fell below 50% 1828 | -10/Subcaves | A Subdweller sparked back to life 1828 | -10/Subcaves | A Subdweller sparked back to life 1901 | -10/Subcaves | Discovered new exit (range 9) 2117 | -10/Subcaves | Core integrity fell below 20% 2195 | -10/Subcaves | Lost 3 parts (2n1w) 2213 | -10/Subcaves | Destroyed by NA-QZA(R) with Subdweller Beam Cannon Last Messages --------------- 01961_ Subatomizers dissect the Sub. Machine Gun. 01980_ MS-JEY(R): "OHNO!" 02001_ Subatomizers dissect the Sub. Machine Gun. 02089_ Lrg. Matter Pod destroyed. 02089_ Riot Gun destroyed. 02112_ Acquired 40 matter. 02144_ Assault Rifle destroyed. 02150_ Spk. Treads destroyed. 02154_ YK-EO0(R) misfires. 02164_ Com. Wheel destroyed. 02171_ Sub. Laser fried. 02171_ Sub. Optics fried. 02171_ YK-EO0(R) destroyed. 02178_ Acquired 60 matter. 02183_ Acquired Scrap Shield Fragment. 02184_ Dropped Scrap Shield Fragment. 02213_ Sub. Power Source shoots sparks and powers down. Map ----- +----------------------------------------------------+ | ?????????????????????????????????????????????????? | | ?????????????????????????????????????????????????? | | ?????????????????????????????????????????????????? | | ??????????????????????????????????????????????#### | | ?????????????????????????????????????????????## # | | ???????????????????????????????????#####????## # | | ??????????????????????????????????## #??### | | ?????????????????????????????????## #?## | | ?????????????????????????????????# #?# | | ?????????????????????????????????# #?# # | | ?????????????????????????????????# #?## ## # | | ??????????????????????????????????# ##?###### | | ????????????????## ???#????????????# ######## | | ????????????????? ??? #????????????# | | ????????????????## ??# ????????????## | | ?????????????????" #?# ????????####?## | | ?????????????????? R## ???????## #??##### ### | | ???????????????????" #??????# ####???####?### | | ????????????????????; ??????# ##?### ##### | | ????????????????????# ##????# ### # | | ????????????????????# #????# | | ????????????????????# #????# ## | | ????????????????????# ##??## ## # ### | | ????????????????????### #??# ### ########?## | | ??????????????????????## ##?## ######?????????? | | ??????????????????????# @##?# #####?####?? | | ??????????????????????## #?# ### ##? | | ????????????????????#### #?# #? | | ???????????????????## # ##?# #? | | ??????????????????## #! ##?# ## #? | | ?????????????????## & * #?## ## #? | | ?????????????????# & #??## ### ##? | | ?????????????????# ##??## #?## ### | | ?????????????????# ######?## ########## | | ?????????????????# ## ### #?# #### | | ?????????????????## #?# ## | | ??????????????????## ### | | ???????????????????### ## | | ?????????????????????## ## | | ??????????????????????### ### ! #### | | ????????????????????????#####?# ##?? | | ??????????????????????????????## ##? | | ???????????????????????????????### [! ## | | ?????????????????????????????????##### & # | | ???????????????????????????####??????#*! % % | | ???????????????????????????# ##????## | | ??????????????????????????## ###### # # % | | ??????????????????????????# # ## ## % | | ?????????????????????????## #### ### # | | ?????????????????????????# # # # ## ## | +----------------------------------------------------+ Best States ------------- Heat Dissipation 25 Energy Generation 15 Energy Capacity 250 Matter Stores 405 Matter Capacity 450 Sight Range 16 Terrain Scan Density 10 Evasion (%) 50 Item Schematics ----------------- None Robot Schematics ------------------ None Fabricated ------------ Nothing Alien Tech Used ----------------- None Achievements -------------- None Challenges ------------ None Game ------ Seed ProjectionImpactShredder Manual? 0 Play Time 00:13:41 Cumulative 23.7 hours Start 2024.05.27 @ 22:06:28 End 2024.05.27 @ 22:19:51 Sessions 1 Manual Loads 0 Difficulty Rogue Special Mode None Game No. 47 Rogue 47 Adventurer 0 Explorer 0 Win Type - Total 0 Types 0/0/0/0/0/0/0/0/0 Lore% 24 Gallery% 32 Achievement% 26 Wizard Run 0 Options --------- Layout 1 ASCII 0 Keyboard 0 Movement Mouse Keybinds 0 Fullscreen 2 Font 32/Smallcaps Map View 50x35 Zoom Use 0% Tactical HUD 1 Map Filters NONE Filters NONE Steam 1 RUN: 3fea75f8-df7f-436f-832a-01a51199781a